[Event "Late-Titled-Tuesday-Blitz-April-30-2024"]
[Site "Chess.com"]
[Date "2024.04.30"]
[Round "1"]
[White "zacachess"]
[Black "MKlose11"]
[Result "0-1"]
[WhiteElo "2334"]
[BlackElo "2634"]
[TimeControl "180+1"]
[EndTime "14:08:13 PDT"]
[Termination "MKlose11 won on time"]

1. e4 {[%clk 0:02:59.8]} 1... e6 {[%clk 0:02:53.7]} 2. d4 {[%clk 0:02:59.5]}
2... d5 {[%clk 0:02:54.6]} 3. Nc3 {[%clk 0:02:59.9]} 3... Bb4 {[%clk 0:02:51.1]}
4. Ne2 {[%clk 0:02:58.3]} 4... dxe4 {[%clk 0:02:50.2]} 5. a3 {[%clk 0:02:58.3]}
5... Bxc3+ {[%clk 0:02:49.9]} 6. Nxc3 {[%clk 0:02:59.2]} 6... Nc6 {[%clk
0:02:50.6]} 7. Bf4 {[%clk 0:02:58.9]} 7... Qxd4 {[%clk 0:02:49.7]} 8. Nb5 {[%clk
0:02:56.5]} 8... Qxd1+ {[%clk 0:02:32.6]} 9. Rxd1 {[%clk 0:02:57.3]} 9... e5
{[%clk 0:02:28.5]} 10. Nxc7+ {[%clk 0:02:46.5]} 10... Ke7 {[%clk 0:02:27.6]} 11.
Bg5+ {[%clk 0:02:39.3]} 11... f6 {[%clk 0:02:27.8]} 12. Be3 {[%clk 0:01:59]}
12... Rb8 {[%clk 0:02:24.3]} 13. b4 {[%clk 0:01:55.1]} 13... b6 {[%clk
0:02:20.1]} 14. Bc4 {[%clk 0:01:34.6]} 14... Bb7 {[%clk 0:02:03.7]} 15. Nd5+
{[%clk 0:01:14.5]} 15... Ke8 {[%clk 0:01:53.8]} 16. Nc7+ {[%clk 0:01:12.6]}
16... Ke7 {[%clk 0:01:52.8]} 17. Nd5+ {[%clk 0:01:12.9]} 17... Kf8 {[%clk
0:01:53.1]} 18. Nc3 {[%clk 0:01:13.1]} 18... Nge7 {[%clk 0:01:38.5]} 19. Nxe4
{[%clk 0:01:04]} 19... Nd4 {[%clk 0:01:37.2]} 20. Bxd4 {[%clk 0:00:52.2]} 20...
Bxe4 {[%clk 0:01:35.8]} 21. Be3 {[%clk 0:00:49.2]} 21... Rc8 {[%clk 0:01:26.8]}
22. Be6 {[%clk 0:00:46.1]} 22... Ra8 {[%clk 0:01:18.5]} 23. c4 {[%clk
0:00:45.9]} 23... Nf5 {[%clk 0:01:02.4]} 24. Rd7 {[%clk 0:00:41.5]} 24... Nxe3
{[%clk 0:01:01.6]} 25. fxe3 {[%clk 0:00:41.3]} 25... Bg6 {[%clk 0:00:45.9]} 26.
Ke2 {[%clk 0:00:41.2]} 26... Re8 {[%clk 0:00:44.4]} 27. Bh3 {[%clk 0:00:29.2]}
27... Re7 {[%clk 0:00:40.1]} 28. Rhd1 {[%clk 0:00:27]} 28... Bh5+ {[%clk
0:00:34.6]} 29. g4 {[%clk 0:00:25.3]} 29... Be8 {[%clk 0:00:34.6]} 30. Rd8
{[%clk 0:00:20.3]} 30... Kf7 {[%clk 0:00:31.1]} 31. Bg2 {[%clk 0:00:20.6]} 31...
h5 {[%clk 0:00:21.9]} 32. Bd5+ {[%clk 0:00:16.2]} 32... Kg6 {[%clk 0:00:21.9]}
33. Rg1 {[%clk 0:00:14.3]} 33... h4 {[%clk 0:00:20.4]} 34. h3 {[%clk 0:00:13.9]}
34... Kh7 {[%clk 0:00:10.3]} 35. Be4+ {[%clk 0:00:12.6]} 35... Kh6 {[%clk
0:00:09.6]} 36. Rgd1 {[%clk 0:00:11.6]} 36... Rf8 {[%clk 0:00:07.3]} 37. R1d6
{[%clk 0:00:11.3]} 37... Rff7 {[%clk 0:00:06.9]} 38. Rb8 {[%clk 0:00:08.9]}
38... g6 {[%clk 0:00:07.2]} 39. Rdd8 {[%clk 0:00:08.7]} 39... Rf8 {[%clk
0:00:07]} 40. Bc6 {[%clk 0:00:07.2]} 40... Bxc6 {[%clk 0:00:07.1]} 41. Rxf8
{[%clk 0:00:07.3]} 41... Kg5 {[%clk 0:00:06.7]} 42. Rfc8 {[%clk 0:00:04.6]}
42... Bg2 {[%clk 0:00:06.7]} 43. c5 {[%clk 0:00:03.7]} 43... Bxh3 {[%clk
0:00:05.9]} 44. c6 {[%clk 0:00:03]} 44... Bxg4+ {[%clk 0:00:05.9]} 45. Kf2
{[%clk 0:00:03.6]} 45... Bxc8 {[%clk 0:00:06.8]} 46. Rxc8 {[%clk 0:00:03.6]}
46... b5 {[%clk 0:00:07.1]} 47. e4 {[%clk 0:00:02.8]} 47... f5 {[%clk
0:00:07.4]} 48. c7 {[%clk 0:00:02.9]} 48... fxe4 {[%clk 0:00:07]} 49. Ke3 {[%clk
0:00:03.2]} 49... Rh7 {[%clk 0:00:06.8]} 50. Kxe4 {[%clk 0:00:02.9]} 50... h3
{[%clk 0:00:07.2]} 51. Kd5 {[%clk 0:00:02.3]} 51... h2 {[%clk 0:00:07.1]} 52.
Kd6 {[%clk 0:00:02.6]} 52... h1=Q {[%clk 0:00:07.3]} 53. Rh8 {[%clk 0:00:01.9]}
53... Rxh8 {[%clk 0:00:06.8]} 0-1

[Event "Late-Titled-Tuesday-Blitz-April-30-2024"]
[Site "Chess.com"]
[Date "2024.04.30"]
[Round "1"]
[White "mjelcic"]
[Black "Doomfist26"]
[Result "1/2-1/2"]
[WhiteElo "2344"]
[BlackElo "2628"]
[TimeControl "180+1"]
[EndTime "14:08:14 PDT"]
[Termination "Game drawn - insufficient material"]

1. d4 {[%clk 0:03:00.9]} 1... Nf6 {[%clk 0:02:58.6]} 2. c4 {[%clk 0:02:59.6]}
2... g6 {[%clk 0:02:59]} 3. Nc3 {[%clk 0:02:59.5]} 3... Bg7 {[%clk 0:02:59.3]}
4. e4 {[%clk 0:02:59.7]} 4... d6 {[%clk 0:02:59.9]} 5. Nf3 {[%clk 0:02:58.7]}
5... O-O {[%clk 0:03:00.2]} 6. Be2 {[%clk 0:02:57.2]} 6... e5 {[%clk 0:03:00.7]}
7. dxe5 {[%clk 0:02:56.3]} 7... dxe5 {[%clk 0:03:01.6]} 8. Bg5 {[%clk
0:02:56.7]} 8... c6 {[%clk 0:02:56.2]} 9. Qxd8 {[%clk 0:02:39.8]} 9... Rxd8
{[%clk 0:02:55.3]} 10. Nxe5 {[%clk 0:02:35.8]} 10... Re8 {[%clk 0:02:52.1]} 11.
f4 {[%clk 0:02:17.4]} 11... h6 {[%clk 0:02:33]} 12. Bh4 {[%clk 0:02:16.5]} 12...
g5 {[%clk 0:02:19.9]} 13. fxg5 {[%clk 0:02:16]} 13... hxg5 {[%clk 0:02:20.1]}
14. Bg3 {[%clk 0:02:14]} 14... Nxe4 {[%clk 0:02:15.7]} 15. Nxe4 {[%clk
0:02:13.7]} 15... Bxe5 {[%clk 0:02:15.9]} 16. Bxe5 {[%clk 0:01:59.3]} 16... Rxe5
{[%clk 0:02:16.8]} 17. Nc3 {[%clk 0:01:50.3]} 17... Na6 {[%clk 0:02:13.1]} 18.
O-O {[%clk 0:01:48.7]} 18... Be6 {[%clk 0:02:10]} 19. Rad1 {[%clk 0:01:34.5]}
19... Nb4 {[%clk 0:01:35.6]} 20. a3 {[%clk 0:01:32.8]} 20... Nc2 {[%clk
0:01:35.1]} 21. Rd2 {[%clk 0:01:32.2]} 21... Ne3 {[%clk 0:01:34.8]} 22. Rf6
{[%clk 0:00:49.7]} 22... Kg7 {[%clk 0:01:30]} 23. Rf3 {[%clk 0:00:49.7]} 23...
Nxc4 {[%clk 0:01:20.1]} 24. Bxc4 {[%clk 0:00:49.2]} 24... Bxc4 {[%clk 0:01:21]}
25. Rd7 {[%clk 0:00:49.4]} 25... Rb8 {[%clk 0:00:59.8]} 26. Kf2 {[%clk
0:00:46.5]} 26... a5 {[%clk 0:00:53.3]} 27. Re3 {[%clk 0:00:41.2]} 27... Rf5+
{[%clk 0:00:49.8]} 28. Kg3 {[%clk 0:00:40.2]} 28... Kg6 {[%clk 0:00:42.9]} 29.
Ree7 {[%clk 0:00:39.6]} 29... b5 {[%clk 0:00:41.7]} 30. Ne4 {[%clk 0:00:37.9]}
30... Be6 {[%clk 0:00:39.7]} 31. Rc7 {[%clk 0:00:33.1]} 31... b4 {[%clk
0:00:39.9]} 32. Nd6 {[%clk 0:00:29]} 32... Rd5 {[%clk 0:00:34.2]} 33. Nxf7
{[%clk 0:00:24.8]} 33... Bxf7 {[%clk 0:00:34.1]} 34. Rxf7 {[%clk 0:00:24.7]}
34... bxa3 {[%clk 0:00:34.8]} 35. bxa3 {[%clk 0:00:24.8]} 35... Rb3+ {[%clk
0:00:34.3]} 36. Rf3 {[%clk 0:00:24.9]} 36... Rxf3+ {[%clk 0:00:31.3]} 37. gxf3
{[%clk 0:00:24.8]} 37... Rc5 {[%clk 0:00:32]} 38. a4 {[%clk 0:00:20.4]} 38...
Rc4 {[%clk 0:00:31.7]} 39. Kf2 {[%clk 0:00:18.9]} 39... Kf5 {[%clk 0:00:31.9]}
40. Kg3 {[%clk 0:00:16.6]} 40... Ke5 {[%clk 0:00:30.1]} 41. h3 {[%clk
0:00:16.5]} 41... Kd6 {[%clk 0:00:29.2]} 42. Rg7 {[%clk 0:00:16.5]} 42... Rxa4
{[%clk 0:00:29.9]} 43. Rg6+ {[%clk 0:00:16.2]} 43... Kc7 {[%clk 0:00:29.6]} 44.
Rxg5 {[%clk 0:00:16.5]} 44... Ra1 {[%clk 0:00:30.3]} 45. h4 {[%clk 0:00:16.5]}
45... a4 {[%clk 0:00:30.8]} 46. h5 {[%clk 0:00:16.2]} 46... a3 {[%clk
0:00:30.5]} 47. Ra5 {[%clk 0:00:16.7]} 47... Kb6 {[%clk 0:00:30]} 48. Ra8 {[%clk
0:00:16.3]} 48... c5 {[%clk 0:00:22.6]} 49. h6 {[%clk 0:00:16.1]} 49... Rh1
{[%clk 0:00:23.1]} 50. Rxa3 {[%clk 0:00:15.3]} 50... Rxh6 {[%clk 0:00:23.8]} 51.
f4 {[%clk 0:00:15.2]} 51... c4 {[%clk 0:00:22.5]} 52. f5 {[%clk 0:00:14.6]}
52... Kc5 {[%clk 0:00:23.1]} 53. Kf4 {[%clk 0:00:14.6]} 53... Kb4 {[%clk
0:00:23]} 54. Ra8 {[%clk 0:00:14.6]} 54... Rc6 {[%clk 0:00:21.8]} 55. Ra1 {[%clk
0:00:14.3]} 55... Kb3 {[%clk 0:00:21.6]} 56. Rf1 {[%clk 0:00:14.6]} 56... c3
{[%clk 0:00:21.1]} 57. Kg5 {[%clk 0:00:14.8]} 57... c2 {[%clk 0:00:20.6]} 58. f6
{[%clk 0:00:15]} 58... Rc7 {[%clk 0:00:15.9]} 59. Kg6 {[%clk 0:00:13.4]} 59...
c1=Q {[%clk 0:00:15.4]} 60. Rxc1 {[%clk 0:00:13.5]} 60... Rxc1 {[%clk
0:00:16.3]} 61. f7 {[%clk 0:00:14]} 61... Rg1+ {[%clk 0:00:16.6]} 62. Kf6 {[%clk
0:00:14.2]} 62... Rf1+ {[%clk 0:00:15.9]} 63. Ke7 {[%clk 0:00:14.7]} 63... Re1+
{[%clk 0:00:16.6]} 64. Kf6 {[%clk 0:00:15]} 64... Rf1+ {[%clk 0:00:17.3]} 65.
Kg7 {[%clk 0:00:15.5]} 65... Kc4 {[%clk 0:00:18.1]} 66. f8=Q {[%clk 0:00:14.4]}
66... Rxf8 {[%clk 0:00:19]} 67. Kxf8 {[%clk 0:00:15.3]} 1/2-1/2

[Event "Late-Titled-Tuesday-Blitz-April-30-2024"]
[Site "Chess.com"]
[Date "2024.04.30"]
[Round "1"]
[White "Abund"]
[Black "ExchangeAB"]
[Result "1-0"]
[WhiteElo "2785"]
[BlackElo "2439"]
[TimeControl "180+1"]
[EndTime "14:08:21 PDT"]
[Termination "Abund won by resignation"]

1. e4 {[%clk 0:03:00.9]} 1... c6 {[%clk 0:03:00.5]} 2. d4 {[%clk 0:03:01.1]}
2... d5 {[%clk 0:03:01.4]} 3. exd5 {[%clk 0:03:01.4]} 3... cxd5 {[%clk
0:03:02.3]} 4. Bd3 {[%clk 0:03:02.1]} 4... Nf6 {[%clk 0:03:03.2]} 5. h3 {[%clk
0:03:02]} 5... Nc6 {[%clk 0:03:03.6]} 6. c3 {[%clk 0:03:02.7]} 6... g6 {[%clk
0:03:04.2]} 7. Nf3 {[%clk 0:03:02.9]} 7... Bf5 {[%clk 0:03:04.8]} 8. O-O {[%clk
0:03:03.4]} 8... Bxd3 {[%clk 0:03:04.5]} 9. Qxd3 {[%clk 0:03:04.3]} 9... Bg7
{[%clk 0:03:05.4]} 10. Bf4 {[%clk 0:03:04.4]} 10... Ne4 {[%clk 0:03:03.8]} 11.
Nbd2 {[%clk 0:03:00]} 11... Nxd2 {[%clk 0:03:03.9]} 12. Qxd2 {[%clk 0:02:58.9]}
12... O-O {[%clk 0:03:04]} 13. Rfe1 {[%clk 0:02:58.1]} 13... e6 {[%clk 0:03:04]}
14. Re2 {[%clk 0:02:57.1]} 14... b5 {[%clk 0:03:03.6]} 15. Ne1 {[%clk
0:02:43.1]} 15... b4 {[%clk 0:02:55.1]} 16. Nd3 {[%clk 0:02:37.4]} 16... bxc3
{[%clk 0:02:54.2]} 17. bxc3 {[%clk 0:02:38.3]} 17... Na5 {[%clk 0:02:49.9]} 18.
Rb1 {[%clk 0:02:32.6]} 18... Nc4 {[%clk 0:02:47.4]} 19. Qd1 {[%clk 0:02:29.2]}
19... Qa5 {[%clk 0:02:30.4]} 20. Rb3 {[%clk 0:02:26.5]} 20... Rfc8 {[%clk
0:02:23.4]} 21. h4 {[%clk 0:02:15.2]} 21... h5 {[%clk 0:02:22]} 22. Nc5 {[%clk
0:02:05.1]} 22... Rxc5 {[%clk 0:02:16.9]} 23. dxc5 {[%clk 0:02:03.3]} 23... Qxc5
{[%clk 0:02:17.8]} 24. Qd3 {[%clk 0:01:54.4]} 24... a5 {[%clk 0:02:16.5]} 25.
Rb7 {[%clk 0:01:48.9]} 25... Qc6 {[%clk 0:02:08.6]} 26. Rb1 {[%clk 0:01:35.6]}
26... Rc8 {[%clk 0:02:07.6]} 27. Rb8 {[%clk 0:01:17.1]} 27... Rxb8 {[%clk
0:02:05.8]} 28. Bxb8 {[%clk 0:01:18]} 28... Qb5 {[%clk 0:01:57.1]} 29. Bg3
{[%clk 0:01:10.4]} 29... a4 {[%clk 0:01:57.1]} 30. Kh2 {[%clk 0:01:08.2]} 30...
Qa5 {[%clk 0:01:55.4]} 31. Rc2 {[%clk 0:01:06.6]} 31... a3 {[%clk 0:01:54.3]}
32. Bf4 {[%clk 0:01:03.2]} 32... Qd8 {[%clk 0:01:51.5]} 33. g3 {[%clk
0:01:02.5]} 33... Qc8 {[%clk 0:01:45.5]} 34. Be3 {[%clk 0:01:00.7]} 34... Qc6
{[%clk 0:01:44]} 35. Qe2 {[%clk 0:00:54.8]} 35... Ne5 {[%clk 0:01:42.7]} 36. Bd4
{[%clk 0:00:51.6]} 36... Ng4+ {[%clk 0:01:42.2]} 37. Kg1 {[%clk 0:00:52.1]}
37... e5 {[%clk 0:01:37.5]} 38. Be3 {[%clk 0:00:52.5]} 38... Nxe3 {[%clk
0:01:18.9]} 39. Qxe3 {[%clk 0:00:52.2]} 39... d4 {[%clk 0:01:18.7]} 40. Qd2
{[%clk 0:00:48.1]} 40... Qd5 {[%clk 0:01:11]} 41. cxd4 {[%clk 0:00:39.5]} 41...
exd4 {[%clk 0:01:11.9]} 42. Qd3 {[%clk 0:00:39.9]} 42... Bf6 {[%clk 0:01:06]}
43. Qxa3 {[%clk 0:00:37.1]} 43... Kg7 {[%clk 0:00:58.3]} 44. Qd3 {[%clk
0:00:36.6]} 44... Be5 {[%clk 0:00:55.8]} 45. Re2 {[%clk 0:00:34.9]} 45... Bf6
{[%clk 0:00:53.5]} 46. Kh2 {[%clk 0:00:34.4]} 46... Qc5 {[%clk 0:00:49]} 47. Kg2
{[%clk 0:00:32.7]} 47... Qc1 {[%clk 0:00:46.5]} 48. Rc2 {[%clk 0:00:28.4]} 48...
Qa1 {[%clk 0:00:46.2]} 49. Rd2 {[%clk 0:00:26.6]} 49... Be5 {[%clk 0:00:43.9]}
50. Qe2 {[%clk 0:00:26]} 50... Bf6 {[%clk 0:00:42.9]} 51. Rd3 {[%clk 0:00:26.3]}
51... Qc1 {[%clk 0:00:39.9]} 52. Rf3 {[%clk 0:00:26]} 52... Qc6 {[%clk 0:00:38]}
53. Kh2 {[%clk 0:00:26.1]} 53... Qd6 {[%clk 0:00:36.5]} 54. a4 {[%clk
0:00:23.9]} 54... Bxh4 {[%clk 0:00:35.2]} 55. a5 {[%clk 0:00:22.7]} 55... Bd8
{[%clk 0:00:33.4]} 56. a6 {[%clk 0:00:21.9]} 56... Bb6 {[%clk 0:00:33.3]} 57.
Qc4 {[%clk 0:00:19.1]} 57... Qd7 {[%clk 0:00:27.4]} 58. Qb3 {[%clk 0:00:13.6]}
58... Qa7 {[%clk 0:00:24.6]} 59. Qd5 {[%clk 0:00:09.3]} 59... Bc5 {[%clk
0:00:12]} 60. Qb7 {[%clk 0:00:08.3]} 60... Bb6 {[%clk 0:00:08]} 61. Rxf7+ {[%clk
0:00:07.3]} 1-0

[Event "Late-Titled-Tuesday-Blitz-April-30-2024"]
[Site "Chess.com"]
[Date "2024.04.30"]
[Round "1"]
[White "FoggyMorning"]
[Black "alexrustemov"]
[Result "0-1"]
[WhiteElo "2482"]
[BlackElo "2906"]
[TimeControl "180+1"]
[EndTime "14:08:22 PDT"]
[Termination "alexrustemov won by resignation"]

1. e4 {[%clk 0:03:00.9]} 1... e6 {[%clk 0:03:00]} 2. d4 {[%clk 0:03:00.6]} 2...
d5 {[%clk 0:03:00.7]} 3. Nc3 {[%clk 0:03:01.5]} 3... dxe4 {[%clk 0:03:01]} 4.
Nxe4 {[%clk 0:03:02.4]} 4... Bd7 {[%clk 0:03:01.5]} 5. Nf3 {[%clk 0:03:00.6]}
5... Bc6 {[%clk 0:03:01.9]} 6. Bd3 {[%clk 0:03:01.3]} 6... Nd7 {[%clk
0:03:02.3]} 7. Qe2 {[%clk 0:03:01.3]} 7... Ngf6 {[%clk 0:03:02.7]} 8. Neg5
{[%clk 0:03:01.8]} 8... Qe7 {[%clk 0:03:02]} 9. Bd2 {[%clk 0:02:48.6]} 9... h6
{[%clk 0:03:01.7]} 10. Ne4 {[%clk 0:02:46.6]} 10... Nxe4 {[%clk 0:02:59.7]} 11.
Bxe4 {[%clk 0:02:46.4]} 11... Bxe4 {[%clk 0:03:00.2]} 12. Qxe4 {[%clk
0:02:47.3]} 12... c6 {[%clk 0:02:59.1]} 13. O-O-O {[%clk 0:02:44.3]} 13... Nf6
{[%clk 0:02:57.1]} 14. Qe2 {[%clk 0:02:42.2]} 14... Qc7 {[%clk 0:02:55.2]} 15.
Kb1 {[%clk 0:02:36.5]} 15... Bd6 {[%clk 0:02:52.1]} 16. Rhe1 {[%clk 0:02:14.9]}
16... O-O-O {[%clk 0:02:51.3]} 17. g3 {[%clk 0:02:12.5]} 17... Rhe8 {[%clk
0:02:48.7]} 18. c4 {[%clk 0:02:10]} 18... c5 {[%clk 0:02:36.5]} 19. Bc3 {[%clk
0:02:09.9]} 19... cxd4 {[%clk 0:02:28.5]} 20. Nxd4 {[%clk 0:02:10.8]} 20... a6
{[%clk 0:02:27.6]} 21. a3 {[%clk 0:02:04.9]} 21... Kb8 {[%clk 0:02:19.5]} 22.
Nb3 {[%clk 0:02:04.5]} 22... Qc6 {[%clk 0:01:48.8]} 23. Rc1 {[%clk 0:01:28.8]}
23... Bc7 {[%clk 0:01:46.4]} 24. Be5 {[%clk 0:01:16.9]} 24... Bxe5 {[%clk
0:01:41.4]} 25. Qxe5+ {[%clk 0:01:16.8]} 25... Qc7 {[%clk 0:01:41.9]} 26. Qe2
{[%clk 0:01:05.4]} 26... Rc8 {[%clk 0:01:32.5]} 27. c5 {[%clk 0:01:04.4]} 27...
Qc6 {[%clk 0:01:22.1]} 28. Na5 {[%clk 0:00:55.3]} 28... Qb5 {[%clk 0:01:21.6]}
29. Qxb5 {[%clk 0:00:30.7]} 29... axb5 {[%clk 0:01:22.5]} 30. Nb3 {[%clk
0:00:31.4]} 30... Red8 {[%clk 0:01:20.1]} 31. Rcd1 {[%clk 0:00:27.1]} 31... Ka7
{[%clk 0:01:00.7]} 32. f3 {[%clk 0:00:27.1]} 32... b6 {[%clk 0:00:57.4]} 33.
cxb6+ {[%clk 0:00:16.6]} 33... Kxb6 {[%clk 0:00:58.3]} 34. Rxd8 {[%clk
0:00:15.8]} 34... Rxd8 {[%clk 0:00:58.1]} 35. Kc2 {[%clk 0:00:16.7]} 35... Nd5
{[%clk 0:00:55.5]} 36. Re4 {[%clk 0:00:14.9]} 36... Rc8+ {[%clk 0:00:55.1]} 37.
Kd2 {[%clk 0:00:14.9]} 37... g5 {[%clk 0:00:44.3]} 38. Nd4 {[%clk 0:00:13.9]}
38... Rc4 {[%clk 0:00:37.3]} 39. Ne2 {[%clk 0:00:08.8]} 39... Rxe4 {[%clk
0:00:27.6]} 40. fxe4 {[%clk 0:00:09.7]} 40... Nf6 {[%clk 0:00:28.1]} 41. Nc3
{[%clk 0:00:10.1]} 41... Ng4 {[%clk 0:00:24]} 42. h4 {[%clk 0:00:07.7]} 42...
Ne5 {[%clk 0:00:23.8]} 43. b3 {[%clk 0:00:06]} 43... gxh4 {[%clk 0:00:22.9]} 44.
gxh4 {[%clk 0:00:06]} 44... Nf3+ {[%clk 0:00:23.6]} 45. Ke3 {[%clk 0:00:06.6]}
45... Nxh4 {[%clk 0:00:24.3]} 46. Kf4 {[%clk 0:00:07.1]} 46... Ng6+ {[%clk
0:00:24.4]} 47. Kg4 {[%clk 0:00:05.4]} 47... Kc5 {[%clk 0:00:24.6]} 48. a4
{[%clk 0:00:05.4]} 48... b4 {[%clk 0:00:24.1]} 49. Ne2 {[%clk 0:00:05]} 49...
Ne5+ {[%clk 0:00:22.3]} 50. Kh5 {[%clk 0:00:05.4]} 50... Nd3 {[%clk 0:00:20.4]}
51. Kxh6 {[%clk 0:00:04.8]} 51... Nf2 {[%clk 0:00:19.7]} 52. e5 {[%clk
0:00:03.9]} 52... Nd3 {[%clk 0:00:18.6]} 53. Kg5 {[%clk 0:00:03.3]} 53... Nxe5
{[%clk 0:00:18.6]} 54. Kf6 {[%clk 0:00:04]} 54... Nc6 {[%clk 0:00:15.4]} 55.
Kxf7 {[%clk 0:00:03.8]} 55... e5 {[%clk 0:00:16.1]} 56. Ke6 {[%clk 0:00:04.1]}
56... Nd4+ {[%clk 0:00:16]} 57. Kxe5 {[%clk 0:00:01]} 57... Nxe2 {[%clk
0:00:15.8]} 58. a5 {[%clk 0:00:01.5]} 58... Nc3 {[%clk 0:00:08.7]} 59. a6 {[%clk
0:00:01.5]} 59... Kb6 {[%clk 0:00:08.7]} 60. Kd4 {[%clk 0:00:02.3]} 60... Kxa6
{[%clk 0:00:08.9]} 61. Kc4 {[%clk 0:00:02.5]} 61... Ka5 {[%clk 0:00:09.6]} 62.
Kc5 {[%clk 0:00:03.2]} 62... Na2 {[%clk 0:00:08.8]} 63. Kc4 {[%clk 0:00:03.7]}
63... Nc1 {[%clk 0:00:08.9]} 0-1

[Event "Late-Titled-Tuesday-Blitz-April-30-2024"]
[Site "Chess.com"]
[Date "2024.04.30"]
[Round "1"]
[White "SandwichOSaumon"]
[Black "GlavkonVVS"]
[Result "0-1"]
[WhiteElo "2412"]
[BlackElo "2709"]
[TimeControl "180+1"]
[EndTime "14:08:27 PDT"]
[Termination "GlavkonVVS won by checkmate"]

1. e4 {[%clk 0:03:00.9]} 1... Nf6 {[%clk 0:02:59.9]} 2. Nc3 {[%clk 0:02:59.7]}
2... d5 {[%clk 0:02:58.7]} 3. exd5 {[%clk 0:03:00.6]} 3... Nxd5 {[%clk
0:02:59.1]} 4. Qf3 {[%clk 0:03:01]} 4... c6 {[%clk 0:02:58.6]} 5. Bc4 {[%clk
0:03:00]} 5... e6 {[%clk 0:02:58.8]} 6. d4 {[%clk 0:02:57.5]} 6... Be7 {[%clk
0:02:58.2]} 7. Nh3 {[%clk 0:02:56.6]} 7... O-O {[%clk 0:02:57.1]} 8. Bd2 {[%clk
0:02:55.9]} 8... b5 {[%clk 0:02:46.4]} 9. Bd3 {[%clk 0:02:55.8]} 9... Nd7 {[%clk
0:02:44.2]} 10. Ne4 {[%clk 0:02:53.9]} 10... e5 {[%clk 0:02:39.7]} 11. Nhg5
{[%clk 0:02:47.9]} 11... h6 {[%clk 0:02:37.2]} 12. h4 {[%clk 0:02:35.5]} 12...
exd4 {[%clk 0:02:37.4]} 13. O-O-O {[%clk 0:02:22.8]} 13... Ne5 {[%clk 0:02:37]}
14. Qg3 {[%clk 0:02:17.9]} 14... Nxd3+ {[%clk 0:02:37]} 15. Qxd3 {[%clk
0:02:18.8]} 15... f5 {[%clk 0:02:11.4]} 16. Ng3 {[%clk 0:01:57.3]} 16... hxg5
{[%clk 0:02:09.3]} 17. hxg5 {[%clk 0:01:53.8]} 17... Bxg5 {[%clk 0:02:07.5]} 18.
Qxd4 {[%clk 0:01:51.8]} 18... Bxd2+ {[%clk 0:01:56.9]} 19. Rxd2 {[%clk
0:01:52.7]} 19... Qf6 {[%clk 0:01:54.2]} 20. Qc5 {[%clk 0:01:51.8]} 20... Bd7
{[%clk 0:01:47]} 21. Nh5 {[%clk 0:01:50.9]} 21... Qh6 {[%clk 0:01:41.8]} 22. Ng3
{[%clk 0:01:35.5]} 22... Qe6 {[%clk 0:01:39.9]} 23. Re2 {[%clk 0:01:32.4]} 23...
Qf7 {[%clk 0:01:33.9]} 24. Qd4 {[%clk 0:01:21.7]} 24... Qf6 {[%clk 0:01:27.8]}
25. Qc5 {[%clk 0:01:17.5]} 25... Rfe8 {[%clk 0:01:23.6]} 26. Rd2 {[%clk
0:01:13.3]} 26... f4 {[%clk 0:01:21.2]} 27. Nh5 {[%clk 0:01:09.3]} 27... Qe5
{[%clk 0:01:17.9]} 28. g3 {[%clk 0:01:01.7]} 28... f3 {[%clk 0:01:12.5]} 29. c4
{[%clk 0:00:43.8]} 29... bxc4 {[%clk 0:01:04.2]} 30. Qxc4 {[%clk 0:00:44.7]}
30... Qg5 {[%clk 0:00:51.8]} 31. Nf4 {[%clk 0:00:41.2]} 31... Be6 {[%clk
0:00:45.4]} 32. Rh5 {[%clk 0:00:35.9]} 32... Nxf4 {[%clk 0:00:42.9]} 33. Rxg5
{[%clk 0:00:30.6]} 33... Bxc4 {[%clk 0:00:39.6]} 34. gxf4 {[%clk 0:00:31]} 34...
Bd5 {[%clk 0:00:39.4]} 35. b4 {[%clk 0:00:25.6]} 35... Re1+ {[%clk 0:00:34.7]}
36. Kc2 {[%clk 0:00:24.5]} 36... Re2 {[%clk 0:00:35.1]} 37. b5 {[%clk
0:00:22.7]} 37... Rd8 {[%clk 0:00:33.5]} 38. Kc3 {[%clk 0:00:15.6]} 38... Rxd2
{[%clk 0:00:32.8]} 39. Kxd2 {[%clk 0:00:16.5]} 39... cxb5 {[%clk 0:00:33]} 40.
Ke3 {[%clk 0:00:15.7]} 40... a5 {[%clk 0:00:32.2]} 41. Kd4 {[%clk 0:00:14.2]}
41... Bxa2+ {[%clk 0:00:31.6]} 42. Kc5 {[%clk 0:00:14.4]} 42... Bc4 {[%clk
0:00:31.5]} 43. f5 {[%clk 0:00:14.8]} 43... Kf7 {[%clk 0:00:31.1]} 44. Rg6
{[%clk 0:00:15]} 44... Bd3 {[%clk 0:00:30.6]} 45. Ra6 {[%clk 0:00:13.9]} 45...
a4 {[%clk 0:00:30.7]} 46. Kb4 {[%clk 0:00:11]} 46... Rd5 {[%clk 0:00:29.2]} 47.
f6 {[%clk 0:00:10.3]} 47... gxf6 {[%clk 0:00:29.2]} 48. Ra7+ {[%clk 0:00:11]}
48... Kg6 {[%clk 0:00:29.2]} 49. Ra8 {[%clk 0:00:11.3]} 49... Bc4 {[%clk
0:00:29.2]} 50. Rg8+ {[%clk 0:00:10.7]} 50... Kf5 {[%clk 0:00:29.7]} 51. Rg3
{[%clk 0:00:11.6]} 51... Rd3 {[%clk 0:00:29.9]} 52. Rh3 {[%clk 0:00:09.6]} 52...
Rb3+ {[%clk 0:00:29.9]} 53. Kc5 {[%clk 0:00:09.2]} 53... a3 {[%clk 0:00:30.8]}
54. Rh1 {[%clk 0:00:08.1]} 54... a2 {[%clk 0:00:30.9]} 55. Rh5+ {[%clk
0:00:07.2]} 55... Kg6 {[%clk 0:00:30.4]} 56. Rh8 {[%clk 0:00:07.1]} 56... Rb1
{[%clk 0:00:30.9]} 57. Ra8 {[%clk 0:00:04.5]} 57... a1=Q {[%clk 0:00:30.7]} 58.
Rc8 {[%clk 0:00:04.1]} 58... Qe5+ {[%clk 0:00:30]} 59. Kc6 {[%clk 0:00:04.7]}
59... Rd1 {[%clk 0:00:29.9]} 60. Kb7 {[%clk 0:00:04.9]} 60... Rd7+ {[%clk
0:00:29.4]} 61. Ka6 {[%clk 0:00:05.2]} 61... Qd6+ {[%clk 0:00:29.2]} 62. Ka5
{[%clk 0:00:04.9]} 62... Qa3+ {[%clk 0:00:29.3]} 63. Kb6 {[%clk 0:00:05.2]}
63... Rd6+ {[%clk 0:00:29]} 64. Kc7 {[%clk 0:00:04.2]} 64... Re6 {[%clk
0:00:28.9]} 65. Rd8 {[%clk 0:00:03.8]} 65... Qe7+ {[%clk 0:00:28.2]} 66. Rd7
{[%clk 0:00:03.8]} 66... Qc5+ {[%clk 0:00:28.1]} 67. Kd8 {[%clk 0:00:03.7]}
67... Qb6+ {[%clk 0:00:24.5]} 68. Rc7 {[%clk 0:00:04.1]} 68... Rd6+ {[%clk
0:00:23]} 69. Ke8 {[%clk 0:00:03.7]} 69... Qxc7 {[%clk 0:00:22.3]} 70. Kf8
{[%clk 0:00:04.2]} 70... Rd8# {[%clk 0:00:23.2]} 0-1